[Event "Late-Titled-Tuesday-Blitz-April-23-2024"]
[Site "Chess.com"]
[Date "2024.04.23"]
[Round "2"]
[White "rdarruda"]
[Black "cedchass2006"]
[Result "1-0"]
[WhiteElo "2533"]
[BlackElo "2336"]
[TimeControl "180+1"]
[EndTime "14:15:59 PDT"]
[Termination "rdarruda won by resignation"]

1. Nf3 {[%clk 0:03:00.9]} 1... d5 {[%clk 0:02:58.3]} 2. d4 {[%clk 0:03:00.7]}
2... Nf6 {[%clk 0:02:55.4]} 3. c4 {[%clk 0:03:00.3]} 3... e6 {[%clk 0:02:54.8]}
4. Nc3 {[%clk 0:02:58.8]} 4... dxc4 {[%clk 0:02:53.7]} 5. e4 {[%clk 0:02:57.6]}
5... Bb4 {[%clk 0:02:51]} 6. e5 {[%clk 0:02:54.3]} 6... Nd5 {[%clk 0:02:50]} 7.
Bd2 {[%clk 0:02:53.3]} 7... Nb6 {[%clk 0:02:49.7]} 8. Be2 {[%clk 0:02:32.2]}
8... Nc6 {[%clk 0:02:43]} 9. a3 {[%clk 0:02:30.2]} 9... Be7 {[%clk 0:02:39.9]}
10. Be3 {[%clk 0:02:28.2]} 10... O-O {[%clk 0:02:38.7]} 11. O-O {[%clk
0:02:27.4]} 11... f5 {[%clk 0:02:37.7]} 12. exf6 {[%clk 0:02:19.2]} 12... Bxf6
{[%clk 0:02:34.7]} 13. Ne4 {[%clk 0:02:18.8]} 13... Be7 {[%clk 0:02:33.7]} 14.
Qc2 {[%clk 0:02:14.4]} 14... Bd7 {[%clk 0:02:19.4]} 15. Bxc4 {[%clk 0:02:02.3]}
15... Nxc4 {[%clk 0:02:16.5]} 16. Qxc4 {[%clk 0:02:03.2]} 16... Kh8 {[%clk
0:02:12.4]} 17. Rfe1 {[%clk 0:01:57.5]} 17... Qe8 {[%clk 0:02:06.5]} 18. Bg5
{[%clk 0:01:54.5]} 18... h6 {[%clk 0:02:03.4]} 19. Bxe7 {[%clk 0:01:53.9]} 19...
Qxe7 {[%clk 0:02:03.9]} 20. Nc5 {[%clk 0:01:48.7]} 20... Rae8 {[%clk 0:02:00]}
21. Nxb7 {[%clk 0:01:43.7]} 21... Rb8 {[%clk 0:01:58.1]} 22. Nc5 {[%clk
0:01:41.2]} 22... Rxb2 {[%clk 0:01:29.4]} 23. Nxd7 {[%clk 0:01:39.9]} 23... Qxd7
{[%clk 0:01:26.2]} 24. Qxe6 {[%clk 0:01:39.8]} 24... Qxe6 {[%clk 0:01:25]} 25.
Rxe6 {[%clk 0:01:40.7]} 25... Rfb8 {[%clk 0:00:56.8]} 26. Rxc6 {[%clk 0:01:34]}
26... Ra2 {[%clk 0:00:53.4]} 27. Rcc1 {[%clk 0:01:32.4]} 1-0

[Event "Late-Titled-Tuesday-Blitz-April-23-2024"]
[Site "Chess.com"]
[Date "2024.04.23"]
[Round "2"]
[White "SmirnovTimofey2000"]
[Black "chedimir"]
[Result "0-1"]
[WhiteElo "1976"]
[BlackElo "2449"]
[TimeControl "180+1"]
[EndTime "14:16:01 PDT"]
[Termination "chedimir won by resignation"]

1. e4 {[%clk 0:03:00.9]} 1... c5 {[%clk 0:02:58.8]} 2. c3 {[%clk 0:03:01]} 2...
d5 {[%clk 0:02:57.4]} 3. exd5 {[%clk 0:03:01]} 3... Qxd5 {[%clk 0:02:57.3]} 4.
d4 {[%clk 0:03:01.6]} 4... Nf6 {[%clk 0:02:54.9]} 5. Nf3 {[%clk 0:03:01.8]} 5...
cxd4 {[%clk 0:02:54.1]} 6. cxd4 {[%clk 0:03:01.3]} 6... e6 {[%clk 0:02:54.2]} 7.
Nc3 {[%clk 0:03:00.5]} 7... Qd6 {[%clk 0:02:53.2]} 8. Bb5+ {[%clk 0:02:54.3]}
8... Bd7 {[%clk 0:02:52.3]} 9. O-O {[%clk 0:02:50.9]} 9... Nc6 {[%clk
0:02:49.3]} 10. Re1 {[%clk 0:02:44.7]} 10... Be7 {[%clk 0:02:48.4]} 11. g3
{[%clk 0:02:19.8]} 11... O-O {[%clk 0:02:43.4]} 12. Bf4 {[%clk 0:02:18.5]} 12...
Qb4 {[%clk 0:02:43.1]} 13. Rb1 {[%clk 0:02:01.6]} 13... a6 {[%clk 0:02:33.1]}
14. a3 {[%clk 0:02:01.2]} 14... Qa5 {[%clk 0:02:32.9]} 15. Bxc6 {[%clk
0:01:47.2]} 15... Bxc6 {[%clk 0:02:32.5]} 16. Ne5 {[%clk 0:01:46.1]} 16... Rad8
{[%clk 0:02:28.7]} 17. Nxc6 {[%clk 0:01:44.2]} 17... bxc6 {[%clk 0:02:28.4]} 18.
Qb3 {[%clk 0:01:33]} 18... Rxd4 {[%clk 0:02:22.2]} 19. Rbd1 {[%clk 0:01:29.9]}
19... Rxd1 {[%clk 0:02:18.9]} 20. Rxd1 {[%clk 0:01:30.8]} 20... Nd5 {[%clk
0:02:18.7]} 21. Nxd5 {[%clk 0:01:27.7]} 21... cxd5 {[%clk 0:02:17.6]} 22. Rc1
{[%clk 0:01:16.3]} 22... Bf6 {[%clk 0:02:00.6]} 23. Bc7 {[%clk 0:01:08.1]} 23...
Qb5 {[%clk 0:01:56.7]} 24. Qxb5 {[%clk 0:01:07.4]} 24... axb5 {[%clk 0:01:54.1]}
25. Rc2 {[%clk 0:01:07.1]} 25... Rc8 {[%clk 0:01:52.5]} 26. Rc1 {[%clk
0:00:43.3]} 26... Bxb2 {[%clk 0:01:49.3]} 27. Rc2 {[%clk 0:00:42.2]} 27... Be5
{[%clk 0:01:45.7]} 0-1

[Event "Late-Titled-Tuesday-Blitz-April-23-2024"]
[Site "Chess.com"]
[Date "2024.04.23"]
[Round "2"]
[White "Supelyel"]
[Black "LeninGuerra"]
[Result "1-0"]
[WhiteElo "2419"]
[BlackElo "2678"]
[TimeControl "180+1"]
[EndTime "14:16:04 PDT"]
[Termination "Supelyel won by resignation"]

1. c4 {[%clk 0:03:00.9]} 1... e5 {[%clk 0:02:59.7]} 2. g3 {[%clk 0:03:00.3]}
2... Bc5 {[%clk 0:02:59.5]} 3. Bg2 {[%clk 0:02:59.6]} 3... a6 {[%clk 0:02:59.9]}
4. Nc3 {[%clk 0:02:59.6]} 4... Nf6 {[%clk 0:02:58.6]} 5. e3 {[%clk 0:03:00]}
5... d6 {[%clk 0:02:58.9]} 6. Nge2 {[%clk 0:03:00.1]} 6... Ba7 {[%clk
0:02:58.9]} 7. h3 {[%clk 0:02:58.2]} 7... O-O {[%clk 0:02:59.3]} 8. O-O {[%clk
0:02:56.9]} 8... h6 {[%clk 0:02:59.9]} 9. b4 {[%clk 0:02:53.9]} 9... Nc6 {[%clk
0:03:00.2]} 10. b5 {[%clk 0:02:52.1]} 10... axb5 {[%clk 0:03:01.1]} 11. Nxb5
{[%clk 0:02:52.2]} 11... Bb6 {[%clk 0:03:00.6]} 12. Bb2 {[%clk 0:02:52.2]} 12...
Bf5 {[%clk 0:02:59.9]} 13. d4 {[%clk 0:02:41.4]} 13... Qe7 {[%clk 0:02:56.3]}
14. a4 {[%clk 0:02:31.8]} 14... Na5 {[%clk 0:02:55.2]} 15. Rc1 {[%clk
0:02:27.3]} 15... Qe6 {[%clk 0:02:52.9]} 16. c5 {[%clk 0:01:58.3]} 16... dxc5
{[%clk 0:02:52.5]} 17. dxc5 {[%clk 0:01:58.4]} 17... Rad8 {[%clk 0:02:53.1]} 18.
Qe1 {[%clk 0:01:52.3]} 18... c6 {[%clk 0:02:37.7]} 19. cxb6 {[%clk 0:01:46.2]}
19... Nc4 {[%clk 0:02:37.8]} 20. Nc7 {[%clk 0:01:41.1]} 20... Nxb2 {[%clk
0:02:31.2]} 21. Nxe6 {[%clk 0:01:40.4]} 21... Bxe6 {[%clk 0:02:32]} 22. Qc3
{[%clk 0:01:31.9]} 22... Nd3 {[%clk 0:02:20.8]} 23. Rcd1 {[%clk 0:01:24.2]}
23... e4 {[%clk 0:02:21.3]} 24. Nf4 {[%clk 0:01:24.1]} 24... Nxf4 {[%clk
0:02:11.4]} 25. exf4 {[%clk 0:01:22.4]} 25... Nd5 {[%clk 0:02:11.1]} 26. Qb2
{[%clk 0:01:17.6]} 26... f5 {[%clk 0:02:11.1]} 27. Rfe1 {[%clk 0:01:15.7]} 27...
Ra8 {[%clk 0:02:06.7]} 28. Ra1 {[%clk 0:01:14.6]} 28... Ra5 {[%clk 0:02:04.9]}
29. Bf1 {[%clk 0:01:10.8]} 29... Rfa8 {[%clk 0:01:59.4]} 30. Bc4 {[%clk
0:01:10.8]} 30... Nxf4 {[%clk 0:01:54.4]} 31. Bxe6+ {[%clk 0:01:04.2]} 31...
Nxe6 {[%clk 0:01:55.3]} 32. Red1 {[%clk 0:01:02]} 32... Nc5 {[%clk 0:01:53.2]}
33. Qa2+ {[%clk 0:00:55.2]} 33... Kh7 {[%clk 0:01:52.1]} 34. Qf7 {[%clk
0:00:55]} 34... Nxa4 {[%clk 0:01:43.1]} 35. Rd7 {[%clk 0:00:50.5]} 35... Rg8
{[%clk 0:01:42.3]} 36. Rxb7 {[%clk 0:00:48.7]} 1-0

[Event "Late-Titled-Tuesday-Blitz-April-23-2024"]
[Site "Chess.com"]
[Date "2024.04.23"]
[Round "2"]
[White "KChor05"]
[Black "Onischuk_V"]
[Result "0-1"]
[WhiteElo "2583"]
[BlackElo "2830"]
[TimeControl "180+1"]
[EndTime "14:16:13 PDT"]
[Termination "Onischuk_V won by resignation"]

1. e4 {[%clk 0:02:59.3]} 1... d6 {[%clk 0:03:00.3]} 2. d4 {[%clk 0:02:54.7]}
2... Nf6 {[%clk 0:03:00]} 3. Nc3 {[%clk 0:02:55.2]} 3... g6 {[%clk 0:03:00.2]}
4. f4 {[%clk 0:02:55.7]} 4... Bg7 {[%clk 0:03:00.6]} 5. Nf3 {[%clk 0:02:56.3]}
5... O-O {[%clk 0:03:01.3]} 6. e5 {[%clk 0:02:55.1]} 6... dxe5 {[%clk 0:03:01]}
7. fxe5 {[%clk 0:02:53.4]} 7... Nd5 {[%clk 0:03:01.1]} 8. Nxd5 {[%clk
0:02:51.8]} 8... Qxd5 {[%clk 0:03:00.3]} 9. c4 {[%clk 0:02:52.5]} 9... Qe4+
{[%clk 0:02:57.2]} 10. Qe2 {[%clk 0:02:49.6]} 10... Bf5 {[%clk 0:02:48.2]} 11.
Qxe4 {[%clk 0:02:21.5]} 11... Bxe4 {[%clk 0:02:47.8]} 12. Be2 {[%clk 0:02:21.8]}
12... c5 {[%clk 0:02:41]} 13. Bg5 {[%clk 0:02:11.2]} 13... Nc6 {[%clk
0:02:37.6]} 14. dxc5 {[%clk 0:01:58.4]} 14... Nxe5 {[%clk 0:02:29.5]} 15. O-O-O
{[%clk 0:01:54.3]} 15... Rac8 {[%clk 0:02:17.2]} 16. Bxe7 {[%clk 0:01:49.3]}
16... Bh6+ {[%clk 0:02:04]} 17. Nd2 {[%clk 0:01:33.4]} 17... Rfe8 {[%clk
0:02:01.1]} 18. Bd6 {[%clk 0:01:32.7]} 18... Bxg2 {[%clk 0:02:00.1]} 19. Rhg1
{[%clk 0:01:27.3]} 19... Bf3 {[%clk 0:01:56]} 20. Bxf3 {[%clk 0:00:46.5]} 20...
Nxf3 {[%clk 0:01:55.3]} 21. Rg2 {[%clk 0:00:37.8]} 21... b6 {[%clk 0:01:39.6]}
22. Kc2 {[%clk 0:00:32.4]} 22... Nxd2 {[%clk 0:01:36]} 23. b4 {[%clk 0:00:25.3]}
23... Nxc4 {[%clk 0:01:33.2]} 0-1

[Event "Late-Titled-Tuesday-Blitz-April-23-2024"]
[Site "Chess.com"]
[Date "2024.04.23"]
[Round "2"]
[White "BlueWizzard"]
[Black "Orest_Vovk"]
[Result "1-0"]
[WhiteElo "2800"]
[BlackElo "2554"]
[TimeControl "180+1"]
[EndTime "14:16:19 PDT"]
[Termination "BlueWizzard won by checkmate"]

1. d4 {[%clk 0:03:00.9]} 1... h6 {[%clk 0:02:55.8]} 2. e4 {[%clk 0:02:58.8]}
2... g5 {[%clk 0:02:54.1]} 3. f4 {[%clk 0:02:57.4]} 3... g4 {[%clk 0:02:52.1]}
4. Nc3 {[%clk 0:02:55.1]} 4... Bg7 {[%clk 0:02:51.4]} 5. Be3 {[%clk 0:02:50]}
5... d6 {[%clk 0:02:42.7]} 6. e5 {[%clk 0:02:45.7]} 6... c6 {[%clk 0:02:41]} 7.
Nge2 {[%clk 0:02:43.2]} 7... Qa5 {[%clk 0:02:35.1]} 8. Qd2 {[%clk 0:02:38.5]}
8... h5 {[%clk 0:02:30.2]} 9. O-O-O {[%clk 0:02:35.6]} 9... b5 {[%clk
0:02:25.5]} 10. Kb1 {[%clk 0:02:34.9]} 10... Be6 {[%clk 0:02:17.1]} 11. d5
{[%clk 0:02:30.6]} 11... cxd5 {[%clk 0:02:08.5]} 12. Nd4 {[%clk 0:02:23.9]}
12... b4 {[%clk 0:02:00.6]} 13. Bb5+ {[%clk 0:02:19.2]} 13... Kf8 {[%clk
0:01:14.8]} 14. Nce2 {[%clk 0:02:03.7]} 14... dxe5 {[%clk 0:01:08]} 15. fxe5
{[%clk 0:02:03.2]} 15... Bxe5 {[%clk 0:01:06.8]} 16. Nxe6+ {[%clk 0:01:42.2]}
16... fxe6 {[%clk 0:01:07.7]} 17. Bd4 {[%clk 0:01:42.7]} 17... Bxd4 {[%clk
0:00:35]} 18. Nxd4 {[%clk 0:01:43.6]} 18... Rh6 {[%clk 0:00:14.7]} 19. Rhf1+
{[%clk 0:01:41.2]} 19... Kg7 {[%clk 0:00:14.5]} 20. Qg5+ {[%clk 0:01:38.2]}
20... Kh8 {[%clk 0:00:08.2]} 21. Rf8 {[%clk 0:01:33.9]} 21... Nc6 {[%clk
0:00:06.9]} 22. Qxh6# {[%clk 0:01:31.7]} 1-0

[Event "Late-Titled-Tuesday-Blitz-April-23-2024"]
[Site "Chess.com"]
[Date "2024.04.23"]
[Round "2"]
[White "nindjaxx8"]
[Black "Msb2"]
[Result "0-1"]
[WhiteElo "2660"]
[BlackElo "3057"]
[TimeControl "180+1"]
[EndTime "14:16:23 PDT"]
[Termination "Msb2 won by resignation"]

1. d4 {[%clk 0:03:00.9]} 1... d5 {[%clk 0:03:00.1]} 2. c4 {[%clk 0:02:55.9]}
2... e6 {[%clk 0:03:00.5]} 3. Nc3 {[%clk 0:02:53.3]} 3... Bb4 {[%clk 0:03:00.6]}
4. cxd5 {[%clk 0:02:50.2]} 4... exd5 {[%clk 0:03:01.5]} 5. Nf3 {[%clk
0:02:50.1]} 5... Nf6 {[%clk 0:03:01.9]} 6. Bf4 {[%clk 0:02:49.4]} 6... O-O
{[%clk 0:03:01.3]} 7. e3 {[%clk 0:02:49.7]} 7... c5 {[%clk 0:03:02]} 8. Be2
{[%clk 0:02:46.3]} 8... Nc6 {[%clk 0:02:54.6]} 9. O-O {[%clk 0:02:45.6]} 9... c4
{[%clk 0:02:55.1]} 10. Rc1 {[%clk 0:02:43.7]} 10... Bf5 {[%clk 0:02:54.6]} 11.
a3 {[%clk 0:02:40.1]} 11... Bxc3 {[%clk 0:02:54.9]} 12. bxc3 {[%clk 0:02:39.4]}
12... b5 {[%clk 0:02:55.1]} 13. Ne5 {[%clk 0:02:37.3]} 13... Rc8 {[%clk
0:02:54.7]} 14. Nxc6 {[%clk 0:02:35.6]} 14... Rxc6 {[%clk 0:02:55.6]} 15. a4
{[%clk 0:02:36.2]} 15... a6 {[%clk 0:02:54.7]} 16. axb5 {[%clk 0:02:36.4]} 16...
axb5 {[%clk 0:02:55.6]} 17. Ra1 {[%clk 0:02:36.5]} 17... Qe7 {[%clk 0:02:50.8]}
18. Qc1 {[%clk 0:02:33.8]} 18... Rb6 {[%clk 0:02:42.3]} 19. Ra5 {[%clk
0:01:59.3]} 19... h6 {[%clk 0:02:36.7]} 20. Bf3 {[%clk 0:01:57.1]} 20... Rc8
{[%clk 0:02:21.2]} 21. Be5 {[%clk 0:01:37.4]} 21... Be6 {[%clk 0:02:19.1]} 22.
h3 {[%clk 0:01:02.6]} 22... Nd7 {[%clk 0:02:17.7]} 23. Bg3 {[%clk 0:01:01.1]}
23... b4 {[%clk 0:02:17.7]} 24. Bxd5 {[%clk 0:00:56.5]} 24... Bxd5 {[%clk
0:02:12.3]} 25. Rxd5 {[%clk 0:00:57.4]} 25... b3 {[%clk 0:02:13.2]} 26. Qb1
{[%clk 0:00:37.3]} 26... Ra8 {[%clk 0:02:10.1]} 27. Qf5 {[%clk 0:00:34.3]} 27...
Qe6 {[%clk 0:01:57.3]} 28. Qf3 {[%clk 0:00:29.6]} 28... b2 {[%clk 0:01:40.7]}
29. Rxd7 {[%clk 0:00:29.3]} 29... Ra1 {[%clk 0:01:40.8]} 30. Rd8+ {[%clk
0:00:22.2]} 30... Kh7 {[%clk 0:01:41.3]} 31. Rb8 {[%clk 0:00:18.3]} 31... Rxf1+
{[%clk 0:01:40.5]} 0-1

[Event "Late-Titled-Tuesday-Blitz-April-23-2024"]
[Site "Chess.com"]
[Date "2024.04.23"]
[Round "2"]
[White "enriquetejedor"]
[Black "NitaLucian"]
[Result "1-0"]
[WhiteElo "2730"]
[BlackElo "2351"]
[TimeControl "180+1"]
[EndTime "14:16:35 PDT"]
[Termination "enriquetejedor won by resignation"]

1. Na3 {[%clk 0:02:59]} 1... d6 {[%clk 0:03:00.9]} 2. e4 {[%clk 0:02:57.5]} 2...
e5 {[%clk 0:03:01.3]} 3. Nf3 {[%clk 0:02:58.1]} 3... Nf6 {[%clk 0:03:01.6]} 4.
c3 {[%clk 0:02:58]} 4... Be7 {[%clk 0:03:01.9]} 5. Bd3 {[%clk 0:02:54.9]} 5...
Nbd7 {[%clk 0:03:02.8]} 6. O-O {[%clk 0:02:55.1]} 6... O-O {[%clk 0:03:03.2]} 7.
Bc2 {[%clk 0:02:55.5]} 7... b6 {[%clk 0:03:03.6]} 8. d4 {[%clk 0:02:55.7]} 8...
Bb7 {[%clk 0:03:03.9]} 9. Re1 {[%clk 0:02:51.6]} 9... exd4 {[%clk 0:03:03.1]}
10. cxd4 {[%clk 0:02:51]} 10... Re8 {[%clk 0:03:03.5]} 11. b3 {[%clk 0:02:48.3]}
11... c5 {[%clk 0:03:03.6]} 12. d5 {[%clk 0:02:48]} 12... Ng4 {[%clk 0:03:00.5]}
13. Nc4 {[%clk 0:02:47.6]} 13... Bf6 {[%clk 0:02:55.3]} 14. Rb1 {[%clk
0:02:47.2]} 14... Nde5 {[%clk 0:02:54.9]} 15. Nfxe5 {[%clk 0:02:38.7]} 15...
Nxe5 {[%clk 0:02:54.7]} 16. Nxe5 {[%clk 0:02:35.7]} 16... Bxe5 {[%clk
0:02:54.8]} 17. Be3 {[%clk 0:02:33.7]} 17... g6 {[%clk 0:02:43.5]} 18. Qd2
{[%clk 0:02:32.7]} 18... Bg7 {[%clk 0:02:40.9]} 19. Bg5 {[%clk 0:02:31.9]} 19...
Qd7 {[%clk 0:02:38.1]} 20. h3 {[%clk 0:02:31.3]} 20... a5 {[%clk 0:02:32.7]} 21.
a4 {[%clk 0:02:29.9]} 21... Ba6 {[%clk 0:02:32]} 22. Bf4 {[%clk 0:02:28.6]}
22... Be5 {[%clk 0:02:31]} 23. Bh6 {[%clk 0:02:27.6]} 23... Bg7 {[%clk
0:02:25.9]} 24. Be3 {[%clk 0:02:27.1]} 24... b5 {[%clk 0:02:18.9]} 25. axb5
{[%clk 0:02:26.3]} 25... Bxb5 {[%clk 0:02:18.7]} 26. Bd3 {[%clk 0:02:26.1]}
26... Bxd3 {[%clk 0:02:17.5]} 27. Qxd3 {[%clk 0:02:27]} 27... a4 {[%clk
0:02:17.4]} 28. bxa4 {[%clk 0:02:26.5]} 28... Rxa4 {[%clk 0:02:16.3]} 29. f3
{[%clk 0:02:27]} 29... Rea8 {[%clk 0:02:14.4]} 30. Qb5 {[%clk 0:02:26.5]} 30...
Qd8 {[%clk 0:02:06]} 31. Bf4 {[%clk 0:02:23.6]} 31... Qf6 {[%clk 0:02:03.8]} 32.
Bg3 {[%clk 0:02:22.6]} 32... h5 {[%clk 0:01:58.9]} 33. Qc6 {[%clk 0:02:16.1]}
33... R8a6 {[%clk 0:01:49.5]} 34. Qe8+ {[%clk 0:02:08.5]} 34... Kh7 {[%clk
0:01:49]} 35. Rb7 {[%clk 0:02:03.9]} 35... Ra7 {[%clk 0:01:48.7]} 36. Rxa7
{[%clk 0:01:59.1]} 36... Rxa7 {[%clk 0:01:46.3]} 37. Qc6 {[%clk 0:01:58.9]}
37... Bf8 {[%clk 0:01:35]} 38. h4 {[%clk 0:01:55.5]} 38... Qd4+ {[%clk
0:01:34.1]} 39. Kh2 {[%clk 0:01:54.9]} 39... Qd2 {[%clk 0:01:29.9]} 40. Rg1
{[%clk 0:01:49.1]} 40... Ra3 {[%clk 0:01:14.1]} 41. Rf1 {[%clk 0:01:45.5]} 41...
Ra2 {[%clk 0:01:12.9]} 42. Rf2 {[%clk 0:01:45.5]} 42... Qa5 {[%clk 0:01:04.2]}
43. Rxa2 {[%clk 0:01:44]} 43... Qxa2 {[%clk 0:01:04]} 44. Bxd6 {[%clk
0:01:44.5]} 44... Bg7 {[%clk 0:01:03.3]} 45. Qxc5 {[%clk 0:01:43.5]} 45... Qe2
{[%clk 0:01:00.8]} 46. Bg3 {[%clk 0:01:42.6]} 46... Qd1 {[%clk 0:00:54.9]} 47.
Qe7 {[%clk 0:01:42.1]} 47... f5 {[%clk 0:00:48.4]} 48. Be5 {[%clk 0:01:40.8]}
1-0

[Event "Late-Titled-Tuesday-Blitz-April-23-2024"]
[Site "Chess.com"]
[Date "2024.04.23"]
[Round "2"]
[White "cthake"]
[Black "kalinchick"]
[Result "0-1"]
[WhiteElo "1848"]
[BlackElo "2442"]
[TimeControl "180+1"]
[EndTime "14:16:48 PDT"]
[Termination "kalinchick won by checkmate"]

1. e4 {[%clk 0:03:00.9]} 1... e6 {[%clk 0:02:59.6]} 2. b3 {[%clk 0:02:57.4]}
2... d5 {[%clk 0:02:59.4]} 3. exd5 {[%clk 0:02:56.5]} 3... exd5 {[%clk
0:02:59.2]} 4. Bb2 {[%clk 0:02:56.8]} 4... Nf6 {[%clk 0:02:59.8]} 5. Nf3 {[%clk
0:02:55.2]} 5... Be7 {[%clk 0:02:56.9]} 6. Be2 {[%clk 0:02:53.4]} 6... O-O
{[%clk 0:02:56.7]} 7. O-O {[%clk 0:02:53.3]} 7... c5 {[%clk 0:02:56.4]} 8. d4
{[%clk 0:02:50.2]} 8... b6 {[%clk 0:02:51.7]} 9. dxc5 {[%clk 0:02:49.9]} 9...
bxc5 {[%clk 0:02:52.4]} 10. Bd3 {[%clk 0:02:35.9]} 10... Bg4 {[%clk 0:02:47.3]}
11. h3 {[%clk 0:02:35.3]} 11... Bh5 {[%clk 0:02:47.3]} 12. Re1 {[%clk
0:02:33.5]} 12... Nbd7 {[%clk 0:02:45.3]} 13. Nbd2 {[%clk 0:02:31.6]} 13... Bd6
{[%clk 0:02:44.9]} 14. Nf1 {[%clk 0:02:18.5]} 14... Re8 {[%clk 0:02:39.6]} 15.
Qd2 {[%clk 0:02:18.2]} 15... Bxf3 {[%clk 0:02:38.6]} 16. gxf3 {[%clk 0:02:17.4]}
16... Be5 {[%clk 0:02:37.8]} 17. Bxe5 {[%clk 0:02:12.8]} 17... Nxe5 {[%clk
0:02:38.7]} 18. Qf4 {[%clk 0:02:08.2]} 18... Nh5 {[%clk 0:02:20]} 19. Qf5 {[%clk
0:01:43.1]} 19... g6 {[%clk 0:02:19.6]} 20. Rxe5 {[%clk 0:01:10.7]} 20... gxf5
{[%clk 0:02:19]} 21. Rxf5 {[%clk 0:01:09.5]} 21... Qh4 {[%clk 0:02:13.9]} 22.
Kg2 {[%clk 0:01:02]} 22... Nf4+ {[%clk 0:02:06.6]} 23. Kg1 {[%clk 0:00:52.5]}
23... Nxh3+ {[%clk 0:02:05.5]} 24. Kg2 {[%clk 0:00:51.6]} 24... Kh8 {[%clk
0:01:24.3]} 25. Ng3 {[%clk 0:00:49.9]} 25... Nf4+ {[%clk 0:01:23.6]} 26. Kg1
{[%clk 0:00:46.1]} 26... Rg8 {[%clk 0:01:22.7]} 27. Rxf7 {[%clk 0:00:36.5]}
27... Rxg3+ {[%clk 0:01:21.3]} 28. fxg3 {[%clk 0:00:34.6]} 28... Qxg3+ {[%clk
0:01:22.2]} 29. Kf1 {[%clk 0:00:34.9]} 29... Qxf3+ {[%clk 0:01:13.2]} 30. Ke1
{[%clk 0:00:33.7]} 30... Re8+ {[%clk 0:01:13.8]} 31. Kd2 {[%clk 0:00:32.7]}
31... Qe3+ {[%clk 0:01:11.4]} 32. Kc3 {[%clk 0:00:31.1]} 32... Qd4+ {[%clk
0:01:10.2]} 33. Kd2 {[%clk 0:00:30.2]} 33... Re2+ {[%clk 0:01:09.8]} 34. Kd1
{[%clk 0:00:30.3]} 34... Qxa1# {[%clk 0:01:09.8]} 0-1

[Event "Late-Titled-Tuesday-Blitz-April-23-2024"]
[Site "Chess.com"]
[Date "2024.04.23"]
[Round "2"]
[White "Aygehovit1992"]
[Black "Akhayan"]
[Result "1-0"]
[WhiteElo "2721"]
[BlackElo "2415"]
[TimeControl "180+1"]
[EndTime "14:17:00 PDT"]
[Termination "Aygehovit1992 won by checkmate"]

1. e4 {[%clk 0:02:58.4]} 1... e5 {[%clk 0:02:59.4]} 2. Nf3 {[%clk 0:02:58.5]}
2... Nc6 {[%clk 0:02:59.9]} 3. Bb5 {[%clk 0:02:58.7]} 3... a6 {[%clk 0:02:59.7]}
4. Ba4 {[%clk 0:02:59]} 4... Nf6 {[%clk 0:02:59.5]} 5. d3 {[%clk 0:02:59.4]}
5... b5 {[%clk 0:02:59.1]} 6. Bb3 {[%clk 0:02:59.6]} 6... Be7 {[%clk 0:02:59.8]}
7. Nc3 {[%clk 0:02:58.7]} 7... O-O {[%clk 0:03:00.1]} 8. O-O {[%clk 0:02:58]}
8... Bb7 {[%clk 0:02:57.1]} 9. Nd5 {[%clk 0:02:52.2]} 9... d6 {[%clk 0:02:49.2]}
10. Nxe7+ {[%clk 0:02:52.5]} 10... Qxe7 {[%clk 0:02:49]} 11. c3 {[%clk
0:02:52.2]} 11... Na5 {[%clk 0:02:43.5]} 12. Bc2 {[%clk 0:02:51.8]} 12... c5
{[%clk 0:02:44.1]} 13. Nh4 {[%clk 0:02:52.1]} 13... Bc8 {[%clk 0:02:42.4]} 14.
Qf3 {[%clk 0:02:50.7]} 14... Nc6 {[%clk 0:02:24.7]} 15. a4 {[%clk 0:02:29.1]}
15... b4 {[%clk 0:02:22.2]} 16. a5 {[%clk 0:02:25.8]} 16... Rb8 {[%clk
0:02:14.5]} 17. Nf5 {[%clk 0:02:21]} 17... Bxf5 {[%clk 0:02:13.6]} 18. Qxf5
{[%clk 0:02:21.9]} 18... Qe6 {[%clk 0:02:09.8]} 19. Qxe6 {[%clk 0:02:13]} 19...
fxe6 {[%clk 0:02:09.5]} 20. Bb3 {[%clk 0:02:13.8]} 20... Kf7 {[%clk 0:01:56.9]}
21. Bc4 {[%clk 0:02:13.2]} 21... Ke7 {[%clk 0:01:50.9]} 22. g3 {[%clk
0:02:05.3]} 22... Ra8 {[%clk 0:01:30.2]} 23. f4 {[%clk 0:02:03]} 23... exf4
{[%clk 0:01:29.3]} 24. gxf4 {[%clk 0:02:03.9]} 24... d5 {[%clk 0:01:26.8]} 25.
exd5 {[%clk 0:01:58.6]} 25... exd5 {[%clk 0:01:27.4]} 26. Bb3 {[%clk 0:01:59.2]}
26... bxc3 {[%clk 0:01:25.4]} 27. bxc3 {[%clk 0:01:58.3]} 27... Rfb8 {[%clk
0:01:25.5]} 28. Re1+ {[%clk 0:01:58.6]} 28... Kd6 {[%clk 0:01:23.5]} 29. Ba4
{[%clk 0:01:58.1]} 29... Nxa5 {[%clk 0:01:03.6]} 30. f5 {[%clk 0:01:56.3]} 30...
Nh5 {[%clk 0:00:45.4]} 31. Re6+ {[%clk 0:01:56]} 31... Kc7 {[%clk 0:00:43.3]}
32. Bg5 {[%clk 0:01:32.2]} 32... Nb3 {[%clk 0:00:31.9]} 33. Re7+ {[%clk
0:01:31.6]} 33... Kd6 {[%clk 0:00:28.5]} 34. Rae1 {[%clk 0:01:31.1]} 34... c4
{[%clk 0:00:21.3]} 35. d4 {[%clk 0:01:22.1]} 35... Nf6 {[%clk 0:00:10.7]} 36.
R1e6# {[%clk 0:01:21.2]} 1-0

[Event "Late-Titled-Tuesday-Blitz-April-23-2024"]
[Site "Chess.com"]
[Date "2024.04.23"]
[Round "2"]
[White "traack"]
[Black "yuriydovzik"]
[Result "1-0"]
[WhiteElo "2460"]
[BlackElo "2145"]
[TimeControl "180+1"]
[EndTime "14:17:01 PDT"]
[Termination "traack won on time"]

1. e4 {[%clk 0:02:50.3]} 1... c6 {[%clk 0:02:59.1]} 2. Nc3 {[%clk 0:02:49.4]}
2... g6 {[%clk 0:02:54.6]} 3. Nf3 {[%clk 0:02:50.3]} 3... Bg7 {[%clk 0:02:53.1]}
4. d4 {[%clk 0:02:50]} 4... d5 {[%clk 0:02:44]} 5. h3 {[%clk 0:02:49.1]} 5...
dxe4 {[%clk 0:02:41.8]} 6. Nxe4 {[%clk 0:02:50]} 6... Nd7 {[%clk 0:02:41.1]} 7.
Bc4 {[%clk 0:02:48]} 7... Nb6 {[%clk 0:02:24.6]} 8. Bb3 {[%clk 0:02:40.2]} 8...
Nf6 {[%clk 0:02:19.7]} 9. Ng3 {[%clk 0:02:37.5]} 9... O-O {[%clk 0:02:10.2]} 10.
O-O {[%clk 0:02:36.8]} 10... a5 {[%clk 0:01:59.2]} 11. a4 {[%clk 0:02:27.6]}
11... Nbd5 {[%clk 0:01:52]} 12. c3 {[%clk 0:02:27]} 12... b5 {[%clk 0:01:46]}
13. Ne5 {[%clk 0:02:17.7]} 13... Qb6 {[%clk 0:01:27.6]} 14. axb5 {[%clk
0:02:04.3]} 14... cxb5 {[%clk 0:01:25.3]} 15. Ne4 {[%clk 0:01:57.3]} 15... Nxe4
{[%clk 0:01:04.5]} 16. Bxd5 {[%clk 0:01:55.4]} 16... Bb7 {[%clk 0:00:26.9]} 17.
Nd7 {[%clk 0:01:53.4]} 17... Qc7 {[%clk 0:00:19.4]} 18. Bxb7 {[%clk 0:01:52.5]}
18... Qxb7 {[%clk 0:00:17.7]} 19. Nxf8 {[%clk 0:01:52.3]} 19... Bxf8 {[%clk
0:00:17.3]} 20. Qf3 {[%clk 0:01:49.3]} 20... f5 {[%clk 0:00:16.7]} 21. Bf4
{[%clk 0:01:42.3]} 21... a4 {[%clk 0:00:15.2]} 22. Be5 {[%clk 0:01:39.8]} 22...
e6 {[%clk 0:00:15.3]} 23. Rfb1 {[%clk 0:01:25]} 23... Rc8 {[%clk 0:00:13.5]} 24.
Qd3 {[%clk 0:01:15.8]} 24... Qd5 {[%clk 0:00:11.6]} 25. f3 {[%clk 0:01:15.6]}
25... Nc5 {[%clk 0:00:09.9]} 26. Qxb5 {[%clk 0:01:09.2]} 1-0